Cogmind - Beta 14 @@@ ROGUE MODE // 2024.09.18 @ 15:32:36 Player: Dull Result: Destroyed by 5I-4CE(R) with Subdweller Beam Cannon Performance ------------- Evolutions (0) 0 Regions Visited (2) 400 Robots Destroyed (38) 190 Value Destroyed (1065) 1065 Prototype IDs (4) 80 Alien Tech Used (0) 0 Bonus (0) 0 TOTAL SCORE: 1735 Bonus ------- None Cogmind --------- Core Integrity 0/250 Matter 254/300 Energy 265/265 System Corruption 0% Temperature Cool (9) Movement Treading (360) Ox2 Location -10/Subcaves Parts ------- > --- POWER (1) -------- Improved Ion Engine > --- PROPULSION (2) --- Spiked Treads > --- UTILITY (2) ------ High-capacity Storage Unit Core Shielding > --- WEAPON (2) ------- Subdweller Machine Gun Battle Cannon > --- INVENTORY (20) --- Improved Ion Engine Improved Ion Engine Improved Ion Engine Subdweller Power Source Cooling System Cooling System High-capacity Matter Pod (200) High-capacity Matter Pod (200) Improved Terrain Scanner Tractor Beam Riot Gun Subdweller Laser Subdweller Laser Light Assault Rifle Subdweller Shrapnel Launcher Subdweller Shrapnel Launcher Makeshift Axe Peak State ------------ > --- POWER ------------ Improved Ion Engine > --- PROPULSION ------- Subdweller Monowheel Subdweller Monowheel > --- UTILITY ---------- High-capacity Storage Unit Light Armor Plating > --- WEAPON ----------- Subdweller Machine Gun Battle Cannon > --- INVENTORY -------- Improved Ion Engine Improved Ion Engine Improved Ion Engine Subdweller Power Source Cooling System Cooling System High-capacity Matter Pod High-capacity Matter Pod Improved Terrain Scanner Core Shielding Tractor Beam Subdweller Laser Light Assault Rifle Subdweller Machine Gun Subdweller Machine Gun Subdweller Shrapnel Launcher Makeshift Axe [Rating: 15] Favorites ----------- Power Improved Ion Engine Engine Improved Ion Engine Propulsion Light Treads Treads Light Treads Leg Aluminum Leg Wheel Subdweller Monowheel Utility High-capacity Storage Unit Device Improved Terrain Scanner Storage High-capacity Storage Unit Protection Light Armor Plating Weapon Subdweller Machine Gun Energy Gun Particle Gun Ballistic Gun Subdweller Machine Gun Ballistic Cannon Battle Cannon Build | -11 -10 -10 ------- Run | Yrd Mat Sub Slots Evolved . | . . . Power . | . . . Propulsion . | . . . Utility . | . . . Weapon . | . . . Parts Attached 33 | 4 15 14 Power 4 | . 4 . Engine 4 | . 4 . Core . | . . . Reactor . | . . . Propulsion 10 | 2 3 5 Treads 6 | 2 2 2 Leg . | . . . Wheel 4 | . 1 3 Hover . | . . . Flight . | . . . Utility 8 | 1 4 3 Device 1 | 1 . . Storage 2 | . 2 . Processor . | . . . Hackware . | . . . Protection 5 | . 2 3 Artifact . | . . . Weapon 11 | 1 4 6 Energy Gun 3 | 1 2 . Energy Cannon . | . . . Ballistic Gun 6 | . 1 5 Ballistic Cannon 2 | . 1 1 Launcher . | . . . Special Weapon . | . . . Impact Weapon . | . . . Slashing Weapon . | . . . Piercing Weapon . | . . . Special Melee Weapon . | . . . Unidentified Prototypes . | . . . Parts Lost 11 | . 4 7 Power 1 | . 1 . Propulsion 5 | . 2 3 Utility 3 | . . 3 Weapon 2 | . 1 1 Highest Loss Streak 3 | . 1 3 To Critical Strikes . | . . . Average Slot Usage (%) 98 | . 99 98 Engine 13 | . 13 14 Treads 22 | . 27 19 Wheel 4 | . . 6 Storage 14 | . 14 14 Protection 13 | . 13 13 Energy Gun 4 | . 13 . Ballistic Gun 12 | . 4 16 Ballistic Cannon 10 | . 9 11 Peak Build Rating 15 | 9 11 15 Average Rating 11 | 7 9 12 On Entrance 8 | 6 9 10 Naked Turns . | . . . Heaviest Build 58 | 13 54 58 Greatest Support 40 | 40 40 40 Greatest Overweight (x) 2 | . 2 2 Average Overweight (x) 1 | . . 1 Largest Inventory Capacity 20 | 8 20 20 Average Capacity 19 | 8 18 20 Most Carried 20 | 6 19 20 Average Carried 17 | 4 14 18 Final Capacity 20 | 8 20 20 Final Carried 17 | 2 15 17 Class Distribution -------------------- 100% | Mutant Dominant Class ---------------- Mutant | -10/Materials Mutant | -10/Subcaves Resources | -11 -10 -10 ----------- Run | Yrd Mat Sub Matter Collected 1459 | 240 641 578 Remotely . | . . . Salvage Created 1290 | 106 741 443 Parts 70 | 5 33 32 Haulers Intercepted 2 | . 2 . Recyclers Shooed . | . . . Parts Field Recycled . | . . . Retrieved Matter . | . . . Parts Self-Destructed 12 | . . 12 Prevented . | . . . Kills | -11 -10 -10 ------- Run | Yrd Mat Sub Combat Hostiles Destroyed 29 | . 17 12 Guns 17 | . 10 7 Cannons 9 | . 4 5 AOE 3 | . 3 . Classes Destroyed 9 | 2 5 2 Builder 1 | . 1 . Tunneler 1 | 1 . . Hauler 2 | . 2 . Recycler 4 | 1 3 . Watcher 1 | . 1 . Swarmer 5 | . 5 . Grunt 12 | . 12 . Sentry 1 | . . 1 Subdweller 11 | . . 11 Best Kill Streak 6 | 2 6 2 Combat Bots Only 3 | . 3 2 Max Kills in Single Turn 3 | 1 3 1 Gunslinging . | . . . Exploded 1 | . 1 . Melee . | . . . Uniques/NPCs Destroyed . | . . . Combat | -11 -10 -10 -------- Run | Yrd Mat Sub Hostile Shots Fired 170 | . 100 70 Missed 47 | . 29 18 Damage Taken 2164 | 29 972 1163 Core 272 | . 107 165 Absorbed by Shields . | . . . Redirected to Shielding 17 | . 12 5 Core Remaining (%) 100 | 100 . . Volleys Fired 153 | 3 67 83 Largest 2 | 2 2 2 Hottest 130 | 90 130 69 Shots Fired 294 | 6 127 161 Gun 199 | 6 95 98 Cannon 95 | . 32 63 Launcher . | . . . Special . | . . . Kinetic 212 | . 51 161 Thermal 68 | 3 65 . Explosive . | . . . Electromagnetic 14 | 3 11 . Robot Hit Streak 16 | 4 12 16 Robot Miss Streak 4 | . 4 3 Penetration Max . | . . . Secondary Targets 1 | . . 1 Max Gunslinging Chain 1 | . . 1 Shots Hit Robots 168 | 4 84 80 Core Hits 64 | 3 30 31 Critical Kills . | . . . Critical Parts Destroyed 1 | . . 1 Critical Strikes 9 | . 4 5 Burn 3 | . 3 . Destroy 1 | . . 1 Blast 5 | . 1 4 Melee Attacks . | . . . Impact . | . . . Slashing . | . . . Piercing . | . . . Sneak Attacks . | . . . Combat Hostiles . | . . . Follow-up Attacks . | . . . Damage Inflicted 3613 | 90 1968 1555 Guns 1906 | 53 866 987 Cannons 1021 | . 453 568 Explosions 686 | 37 649 . Melee . | . . . Ramming . | . . . Kinetic 2090 | . 535 1555 Thermal 1255 | 62 1193 . Explosive 147 | . 147 . Electromagnetic 121 | 28 93 . Impact . | . . . Slashing . | . . . Piercing . | . . . Highest Corruption . | . . . Average Corruption . | . . . Corruption Purged . | . . . Corruption Blocked . | . . . Overload Shots . | . . . Overflow Damage 78 | . 78 . Projectiles 8 | . 8 . Explosions 70 | . 70 . Melee . | . . . Knockbacks 13 | . 6 7 Impact . | . . . Kinetic 13 | . 6 7 Secondary . | . . . Self-Inflicted Damage 233 | 29 204 . Shots 4 | 1 3 . Rammed . | . . . Targets Rammed . | . . . Kicked . | . . . Crushed . | . . . Highest Temperature 350 | 102 350 . Average Temperature 115 | 50 118 . Received Heat Transfer 594 | . 327 267 Effects 2 | . 2 . Shutdowns 1 | . 1 . Interference 1 | . 1 . Siege Activations . | . . . Robots Corrupted . | . . . Combat Hostiles . | . . . Parts Fried 1 | . 1 . Impact Corruptions . | . . . Robots Melted . | . . . Combat Hostiles . | . . . Parts Melted 6 | . 5 1 Heat Transferred 2461 | 74 2387 . Parts Sabotaged . | . . . Parts Stolen . | . . . Parts Stripped . | . . . Power Chain Reactions 3 | 1 2 . Alert | -11 -10 -10 ------- Run | Yrd Mat Sub Peak Influence 303 | 10 303 . Initial 6 | . 6 . Average 115 | 7 117 . Maximum Alert Level 1 | . 1 . Low Security (%) 81 | 100 81 . Level 1 18 | . 18 . Level 2 . | . . . Level 3 . | . . . Level 4 . | . . . Level 5 . | . . . High Security . | . . . Max Security . | . . . Squads Dispatched 4 | . 4 . Investigation 4 | . 4 . Extermination . | . . . Reinforcement . | . . . Assault . | . . . Garrison . | . . . Intercept . | . . . Searches Triggered . | . . . Construction Impeded . | . . . Haulers Reinforced . | . . . Active Scanning Responses . | . . . Cargo Convoy Interrupts . | . . . Stealth | -11 -10 -10 --------- Run | Yrd Mat Sub Distress Signals 1 | . 1 . Communications Jammed . | . . . Distress Signals . | . . . Times Spotted 51 | . 34 17 Peak Tracking Total 4 | . 4 2 Tactical Retreats 11 | . 8 3 Traps | -11 -10 -10 ------- Run | Yrd Mat Sub Traps Triggered 3 | . 2 1 Indirectly . | . . . Trap Hack Attempts . | . . . Triggered . | . . . Disarmed 6 | . 6 . Reprogrammed 6 | . 6 . Reused 1 | . 1 . Traps Extracted . | . . . Installed . | . . . Triggered 2 | . 1 1 Machines | -11 -10 -10 ---------- Run | Yrd Mat Sub Machines Disabled 4 | . 4 . Max in Single Turn 2 | . 2 . Machines Repaired . | . . . Machines Dismantled . | . . . Machines Sabotaged . | . . . Overloaded Fab Kills . | . . . Hacking | -11 -10 -10 --------- Run | Yrd Mat Sub Machines Accessed 12 | . 10 2 Terminals 8 | . 8 . Fabricators . | . . . Repair Stations . | . . . Recycling Units 2 | . 2 . Scanalyzers . | . . . Garrison Access . | . . . Total Hacks 35 | . 32 3 Successful 20 | . 17 3 Failed 14 | . 14 . Catastrophic . | . . . Database Lockouts 1 | . 1 . Manual 22 | . 22 . Terminals 27 | . 27 . Fabricators . | . . . Repair Stations . | . . . Recycling Units 5 | . 5 . Scanalyzers . | . . . Garrison Access . | . . . Terminal Hacks 9 | . 6 3 Record 1 | . . 1 Robot Analysis 1 | . 1 . Prototype ID Bank 2 | . 2 . Open Door 1 | . . 1 Unreport Threat 1 | . 1 . Disarm Traps 1 | . 1 . Reprogram Traps 1 | . 1 . Release Object 1 | . . 1 Fabricator Hacks . | . . . Repair Station Hacks . | . . . Recycling Unit Hacks . | . . . Scanalyzer . | . . . Garrison Access Hacks . | . . . Unauthorized Hacks 11 | . 11 . Terminals 8 | . 8 . Botnet 8 | . 8 . Fabricators . | . . . Repair Stations . | . . . Recycling Units 3 | . 3 . Reject 1 | . 1 . Mask 2 | . 2 . Scanalyzers . | . . . Garrison Access . | . . . Data Cores Recovered . | . . . Used . | . . . Hacking Detections 8 | . 8 . Full Trace Events 4 | . 4 . Feedback Events . | . . . Feedback Blocked . | . . . Robot Schematics Acquired . | . . . Robots Built . | . . . Authchips . | . . . Time . | . . . Total Robot Build Rating . | . . . Part Schematics Acquired . | . . . Parts Built . | . . . Authchips . | . . . Time . | . . . Total Part Build Rating . | . . . Parts Repaired . | . . . Time . | . . . Parts Recycled . | . . . Recycled Matter . | . . . Retrieved Matter . | . . . Retrieved Components . | . . . Parts Scanalyzed . | . . . Part Schematics Acquired . | . . . Parts Damaged . | . . . Bothacking | -11 -10 -10 ------------ Run | Yrd Mat Sub Used RIF Installer . | . . . Robots Hacked . | . . . Non-combat . | . . . Combat . | . . . Robot Hacks Applied . | . . . Relay Couplers Released . | . . . Fabnet Peak Effective % . | . . . Robots Rewired . | . . . Allies Hacked . | . . . Hacks Repelled . | . . . Allies | -11 -10 -10 -------- Run | Yrd Mat Sub Total Allies . | . . . Largest Group . | . . . Highest-Rated Group . | . . . Highest-Rated Ally . | . . . Total Orders . | . . . Ally Attacks . | . . . Total Damage . | . . . Kills . | . . . Allies Corrupted . | . . . Allies Melted . | . . . Intel | -11 -10 -10 ------- Run | Yrd Mat Sub Robot Analysis Total 1 | . 1 . Derelict Logs Recovered 3 | . . 3 Drone Launches . | . . . Drone Recoveries . | . . . Exploration | -11 -10 -10 ------------- Run | Yrd Mat Sub Turns Passed 6644 | 35 2236 4373 Spaces Moved 2832 | 14 780 2038 Core . | . . . Treads 2017 | 5 780 1232 Legs 9 | 9 . . Wheels 806 | . . 806 Hover . | . . . Flight . | . . . Fastest Speed 120 | 120 160 120 Average Speed 206 | 134 227 199 Slowest Speed 360 | 160 320 360 Overloaded Moves . | . . . Propulsion Burnouts . | . . . Robots Hopped . | . . . Cave-ins Triggered . | . . . Exploration Rate (%) 63 | 3 99 89 Regions Visited 2 Branch Regions 1 Pre-discovered Areas 2 | . . 2 Known Exits Taken . | . . . Unknown Exits Taken 2 | 1 1 . Scrap Searched 1 | . . 1 Spaces Dug 2 | . . 2 Terrain Destroyed 70 | 2 63 5 Melee . | . . . Projectile 5 | . . 5 AOE 65 | 2 63 . Terrain Rammed . | . . . Walls Destroyed . | . . . Machines Disabled . | . . . Actions | -11 -10 -10 --------- Run | Yrd Mat Sub Total 3338 | 25 1117 2196 Wait 251 | . 219 32 Move 2830 | 13 779 2038 Hop . | . . . Pick Up 39 | . 23 16 Fast Attach 7 | 2 3 2 Attach 12 | . 3 9 Detach . | . . . Swap 14 | 2 9 3 Drop 31 | 5 14 12 Fire 153 | 3 67 83 Melee . | . . . Ram . | . . . Kick . | . . . Crush . | . . . Escape Stasis . | . . . Rewire . | . . . Trap . | . . . Miscellaneous 1 | . . 1 Route ------- -11/Scrapyard -10/Materials (discovered 5 exits: [*Mat x3] / [*Min] / *Sub) -10/Subcaves (discovered 2 exits: [*Mat x2]) History --------- Turn | Location | Event 1 | -11/Scrapyard | Discovered new exit (range 3) 36 | -11/Scrapyard | Entered Materials 120 | -10/Materials | Central database locked down 322 | -10/Materials | Build established: Mutant 390 | -10/Materials | Discovered new exit (range 10) 849 | -10/Materials | Discovered new exit (range 13) 1361 | -10/Materials | Discovered new exit (range 16) 1433 | -10/Materials | Discovered new exit (range 13) 2249 | -10/Materials | Discovered new exit (range 4) 2272 | -10/Materials | Entered Subcaves 2796 | -10/Subcaves | Core integrity fell below 50% 3337 | -10/Subcaves | Shifting Twisted Machinery released Sub. Power Source 3521 | -10/Subcaves | Disturbed a concealed Subdweller 3773 | -10/Subcaves | Released subatomizers from SUBCON Basin 3857 | -10/Subcaves | Learned location of Zion (-6) 3857 | -10/Subcaves | Met a Zionite searching for "candidates" 3951 | -10/Subcaves | Shifting Twisted Machinery released Battle Cannon 4143 | -10/Subcaves | Learned location of Storage (-9) 4156 | -10/Subcaves | Shifting Twisted Machinery released Sub. Monowheel 4173 | -10/Subcaves | Shifting Twisted Machinery released Sub. Laser 4392 | -10/Subcaves | A swath of the cavern ceiling suddenly collapsed 5081 | -10/Subcaves | A swath of the cavern ceiling suddenly collapsed 5215 | -10/Subcaves | Lost 3 parts (2n1u) 5473 | -10/Subcaves | Shifting Twisted Machinery released Riot Gun 5474 | -10/Subcaves | Shifting Twisted Machinery released Enh. Flamer 5696 | -10/Subcaves | Core integrity fell below 20% 6039 | -10/Subcaves | Discovered new exit (range 7) 6596 | -10/Subcaves | Discovered new exit (range 14) 6645 | -10/Subcaves | Destroyed by 5I-4CE(R) with Subdweller Beam Cannon Last Messages --------------- 06175_ Subatomizers dissect the Broken Sub. Machine Gun. 06212_ Acquired Spk. Treads. 06216_ Sub. Monowheel shoots sparks and powers down. 06218_ Dropped Broken Sub. Monowheel. 06233_ Acquired 6 matter. 06249_ Sub. Monowheel shoots sparks and powers down. 06250_ Dropped Broken Sub. Monowheel. 06285_ SW-PMJ(u) builds Twisted Machinery. 06397_ UE-WN4(u) tweaks Twisted Machinery. 06524_ Acquired derelict log, extracted data. Data stored: Storage entrances (x1). 06535_ Y-45 Defender destroyed. 06544_ Lgt. Treads fries itself beyond repair. 06560_ Acquired 54 matter. 06563_ Acquired 5 matter. 06596_ EXIT=FOUND 06617_ Triggered Shrapnel Trap. 06617_ An expanding cloud of shrapnel blasts out in all directions. 06617_ Lgt. Armor Plating destroyed. 06628_ 6B-CTU(R) emerges from the Twisted Machinery. Map ----- +----------------------------------------------------+ | ?????????????????????????????????????????????????? | | ?????????????????????????????????????????????????? | | ?????????????????????????????????????????????????? | | ?????????????????????????????????????????????????? | | ?????????????????????????????????????????????????? | | ?????????????????????????????????????????????????? | | ?????????????????????????????????????????????????? | | ?????????????????????????????????????????????????? | | ?????????????????????????????????????????????????? | | ??????????????????????????????####???????????????? | | ??????????????????????????#### ????????????????? | | ???????????????? #????????# ????????????????? | | ??????????????? #???????? ????????????????? | | ???????????????" " ??????? ?????????????????? | | ????????????????" ??????# ^#?????????????????? | | ????????????????# ????## #?????????????????? | | ????????????????# ##### % ####??????????????? | | ????????????????# # #??????????????? | | ?????????????????? < ^ #???????????????? | | ????????????????????? ##???????????????? | | ???????????????????????# ;#???????????????? | | ????????????????????????#R ###??????????????? | | ????????????????????????# R #??####????????? | | ????????????????????????# #??# ##???????? | | ????????????????????????# ;"" #?## ##??????? | | ??????????????????????###@##### #### #??????? | | ??????????????????????# ###### # # ####????? | | ??????????????????????# #?## #????? | | ??????????????????????## ?## # #????? | | ???????????????????????# #?# ## #????? | | ???????????????????????## ## ### # #????? | | ???????????????????????## # #????? | | ??????????????????????## # # #######????? | | ??????????????????????# ### ####??????????? | | ??????????????????????# ## #????????????? | | ??????????????????????## ## #???????????? | | ???????????????????????## ### ??????????? | | ????????????????????????## #?## ##?????????? | | ????????????????????????# ###??# #??????????? | | ???????????????????####### ###?# #??????????? | | ??????????????????## ### ## ##??????????? | | ????????????????### """" #???????????? | | ???????????????## "" ""##??????????? | | ??????##??????## ## "##?????????? | | ??????""#?????# ### " "#?????????? | | ?????? ""##???## ## #### " #?????????? | | ????? """ ###??######### ####"" " "#?????????? | | ??????"""" ###### ## ## ###""" " #?????????? | | ??????"""""""# ## ## " "" ""#?????????? | | ????????#""""" """" #?????????? | +----------------------------------------------------+ Best States ------------- Heat Dissipation 25 Energy Generation 12 Energy Capacity 265 Matter Stores 300 Matter Capacity 300 Sight Range 16 Terrain Scan Range 16 Terrain Scan Density 10 Armor Coverage 150 Core Shielding 20 Evasion (%) 40 Recoil Reduction 2 Item Schematics ----------------- None Robot Schematics ------------------ None Fabricated ------------ Nothing Alien Tech Used ----------------- None Achievements -------------- None Challenges ------------ None Game ------ Seed RegenerativeGaussDiverter Manual? 0 Play Time 00:27:52 Cumulative 109.5 hours Start 2024.09.18 @ 15:05:16 End 2024.09.18 @ 15:32:36 Sessions 1 Manual Loads 0 Difficulty Rogue Special Mode None Game No. 152 Rogue 152 Adventurer 0 Explorer 0 Win Type - Total 1 Types 1/0/0/0/0/0/0/0/0 Lore% 22 Gallery% 56 Achievement% 44 Wizard Run 0 Options --------- Layout 0 ASCII 0 Keyboard 0 Movement Mouse Keybinds 1 Fullscreen 1 Font 18/TerminusBold Map View 76x50 Zoom Use 0% Tactical HUD 1 Map Filters NONE Filters NONE Steam 1 RUN: 7a297a1b-a7f1-4e5c-ba5a-4ddef514c0e1